bitfinex/quotes_ETHUSD_20250123
["timestamp","ask_amount","ask_price","bid_price","bid_amount"]
[1737622623155,3.11314,3212.2,3211.6,3.1137]
[1737622623358,3.11314,3212.2,3211.7,3.11361]
[1737622623891,3.11314,3212.2,3211.5,3.11376]
[1737622624061,3.11314,3212.2,3211.6,3.1137]
[1737622625092,3.11314,3212.2,3211.7,3.11355]
[1737622625566,3.11323,3212.1,3211.6,3.1137]
[1737622626695,4.49508394,3212.3,3211.6,3.1137]
[1737622626990,4.49508394,3212.3,3211.6,0.03113158]
[1737622626991,0.44950839,3212.2,3211.6,0.03113158]
[1737622627309,0.7497,3212.9,3212.0,0.7763]
[1737622627471,0.63057844,3212.5,3212.4,3.11293]
[1737622627656,0.7497,3212.9,3212.6,3.11273]
[1737622628029,0.7497,3212.9,3212.7,3.11263]
[1737622628329,0.7497,3213.3,3212.8,3.11254]
[1737622628466,0.7497,3213.3,3213.0,3.11234]
[1737622630098,0.63406643,3213.1,3213.0,3.11226]
[1737622631878,0.63406643,3213.1,3213.0,3.88856]
[1737622634299,0.75,3213.5,3213.2,3.11215]
[1737622635183,0.60834536,3213.3,3213.2,3.11215]
[1737622638105,0.60834536,3213.3,3213.0,3.88856]
[1737622638275,0.60834536,3213.3,3213.1,3.11221]
[1737622639508,0.60834536,3213.3,3213.0,3.11226]
[1737622639688,0.60834536,3213.3,3213.1,3.11222]
[1737622640305,0.60834536,3213.3,3213.0,3.11226]
[1737622640624,0.60834536,3213.3,3212.8,6.225]
[1737622640912,0.7497,3213.2,3212.5,0.7605]
[1737622641117,3.86192,3213.2,3212.4,3.11288]
[1737622641416,3.11241,3213.0,3212.4,3.11288]
[1737622641797,0.7497,3213.2,3212.8,3.11246]
[1737622641997,0.7497,3213.2,3212.9,3.11242]
[1737622642208,0.7497,3213.2,3212.7,3.11256]
[1737622642579,0.7497,3213.2,3212.6,3.11269]
[1737622642778,0.60834536,3213.3,3212.9,3.11239]
[1737622642978,0.60834536,3213.3,3213.0,3.11233]
[1737622643383,0.60834536,3213.3,3213.1,3.11223]
[1737622644211,0.60834536,3213.3,3212.9,0.0311205]
[1737622644410,0.60834536,3213.3,3212.8,3.87296]
[1737622644737,0.60834536,3213.3,3212.9,3.11243]
[1737622646738,0.60834536,3213.3,3213.0,3.11229]
[1737622648134,0.60834536,3213.3,3213.1,3.11218]
[1737622649349,0.60834536,3213.3,3212.9,3.11235]
[1737622649942,0.60834536,3213.3,3212.8,3.87301]
[1737622650145,0.60834536,3213.3,3212.9,3.11241]
[1737622650644,0.60834536,3213.3,3213.0,3.14347157]
[1737622650853,0.60834536,3213.3,3213.1,3.11225]
[1737622651333,0.60834536,3213.3,3213.0,3.50274716]
[1737622651527,0.60834536,3213.3,3212.9,3.11245]
[1737622651736,0.60834536,3213.3,3212.8,3.11252]
[1737622652042,3.72041536,3213.3,3212.8,3.11252]
[1737622652947,0.60834536,3213.3,3212.8,3.11252]
[1737622653250,0.60834536,3213.3,3212.8,3.14364178]
[1737622654230,0.60834536,3213.3,3212.9,3.11243]
[1737622655121,0.60834536,3213.3,3213.1,3.11224]
[1737622657355,0.60834536,3213.3,3212.9,3.11237]
[1737622658334,0.7497,3213.2,3212.7,3.11256]
[1737622658707,0.7497,3213.2,3212.3,3.11302]
[1737622658830,3.11232,3213.1,3212.3,3.11302]
[1737622659040,3.11256,3212.8,3212.3,3.11302]
[1737622659536,3.11265,3212.7,3212.1,3.1132]
[1737622659732,0.7497,3212.6,3212.1,3.1132]
[1737622660048,0.7497,3212.6,3212.2,3.11306]
[1737622660420,0.7497,3213.1,3212.3,0.03112714]
[1737622660623,0.7497,3213.1,3212.7,3.11261]
[1737622661661,0.7497,3213.1,3212.8,3.11254]
[1737622662937,0.61228872,3212.9,3212.8,3.11254]
[1737622663338,0.61228872,3212.9,3212.6,3.11265]
[1737622663643,0.61228872,3212.9,3212.7,3.11263]
[1737622664844,0.61228872,3212.9,3212.5,3.1128]
[1737622665070,0.61228872,3212.9,3212.4,3.11292]
[1737622665368,3.8623,3212.8,3212.2,3.11304]
[1737622665676,1.50840087,3212.8,3212.3,3.11297]
[1737622666214,1.50840087,3212.8,3212.2,3.11304]
[1737622666380,1.50840087,3212.8,3212.4,3.11292]
[1737622667072,4.62095087,3212.8,3212.2,3.11304]
[1737622668181,4.62095087,3212.8,3212.2,6.2261]
[1737622668346,0.52332396,3212.7,3212.2,6.2261]
[1737622668684,0.52332396,3212.7,3212.2,3.11304]
[1737622669060,0.52332396,3212.7,3212.3,3.11298]
[1737622669383,0.7497,3212.8,3212.3,3.11298]
[1737622671389,0.7497,3212.5,3212.0,3.11327]
[1737622671591,3.8626,3212.5,3211.9,3.11339]
[1737622671787,0.7497,3212.5,3212.1,3.11322]
[1737622673656,0.7497,3212.5,3212.0,3.1133]
[1737622673891,1.447212,3212.5,3212.0,3.1133]
[1737622675392,0.60948193,3212.2,3211.8,3.11351]
[1737622675690,0.60948193,3212.2,3211.6,0.8259]
[1737622675892,0.60948193,3212.2,3211.9,3.1134]
[1737622676068,0.60948193,3212.2,3212.0,3.11326]
[1737622678082,0.60948193,3212.2,3212.1,3.11322]
[1737622679572,0.60948193,3212.2,3211.2,6.06438504]
[1737622679573,0.7497,3211.4,3210.5,0.8259]
[1737622679776,3.11488,3210.4,3209.8,0.8259]
[1737622679964,3.86436,3210.7,3209.8,1.220037]
[1737622679965,0.7728645,3210.3,3209.8,1.220037]
[1737622680166,3.2472352,3210.3,3209.7,3.24477093]
[1737622680601,3.11526,3210.1,3209.7,3.24477093]
[1737622680791,0.6108829,3210.0,3209.7,3.24477093]
[1737622681305,4.4758529,3210.0,3209.7,3.24477093]
[1737622682221,3.11545,3209.8,3209.7,3.24477093]
[1737622682503,3.87458029,3209.8,3209.7,1.44419847]
[1737622682681,3.87458029,3209.8,3209.7,0.65312825]
[1737622684089,3.87458029,3209.8,3209.0,3.11623]
[1737622684414,3.11563,3209.7,3209.0,3.11623]
[1737622684703,3.11567,3209.6,3209.0,3.11623]
[1737622686724,3.11581,3209.5,3208.8,3.94223]
[1737622687215,3.81462103,3209.7,3209.0,3.11623]
[1737622687776,0.7497,3210.0,3209.2,3.11603]
[1737622687982,0.7497,3210.0,3209.5,3.11573]
[1737622689416,0.61949881,3209.8,3209.5,3.11573]
[1737622691186,0.61949881,3209.8,3209.7,3.11555]
[1737622691481,0.61949881,3209.8,3209.6,3.11557]
[1737622694317,0.61949881,3209.8,3209.4,3.88673]
[1737622694524,0.7497,3209.7,3208.9,3.11632]
[1737622694884,3.11568,3209.6,3208.9,3.11632]
[1737622695218,3.86528,3209.7,3209.1,3.1161]
[1737622695920,3.11566,3209.6,3209.1,3.1161]
[1737622696487,1.50973088,3209.7,3209.2,0.03115874]
[1737622696687,1.50973088,3209.7,3209.1,3.1161]
[1737622696888,0.7497,3209.7,3209.4,3.11581]
[1737622700727,0.61949881,3209.8,3209.5,3.11573]
[1737622702426,0.61949881,3209.8,3209.6,3.11564]
[1737622702625,0.61949881,3209.8,3209.7,3.11555]
[1737622702802,0.61949881,3209.8,3209.7,3.14670326]
[1737622703003,6.86429,3210.7,3209.8,0.7597]
[1737622703321,3.11469,3210.6,3210.0,3.11522]
[1737622703914,3.7497,3210.7,3210.0,3.1463686]
[1737622704119,3.7497,3210.7,3210.2,3.11499]
[1737622704814,0.62596023,3210.3,3210.0,6.2304]
[1737622705009,0.62596023,3210.3,3210.0,3.11518]
[1737622705215,0.62596023,3210.3,3210.0,6.23038]
[1737622705416,0.62596023,3210.3,3210.1,3.11511]
[1737622708827,0.62596023,3210.3,3210.2,3.11507]
[1737622709333,0.62596023,3210.3,3210.2,3.14621761]
[1737622709647,0.62596023,3210.3,3210.2,3.11507]
[1737622711700,0.62596023,3210.3,3210.2,3.14621742]
[1737622712027,0.62596023,3210.3,3210.2,3.11507]
[1737622713652,0.62596023,3210.3,3210.2,3.14621782]
[1737622715553,0.62596023,3210.3,3210.2,3.11507]
[1737622716037,0.62596023,3210.3,3210.1,3.11511]
[1737622717240,0.62596023,3210.3,3210.1,6.2302]
[1737622717735,0.62596023,3210.3,3210.2,3.11507]
[1737622718641,0.62596023,3210.3,3210.2,3.14621707]
[1737622719143,0.7497,3211.0,3210.5,3.11476]
[1737622719317,0.7497,3211.0,3210.7,3.11454]
[1737622719318,0.386392,3210.9,3210.7,3.11454]
[1737622719518,0.7497,3211.0,3210.7,3.11454]
[1737622720542,0.7497,3211.0,3210.6,0.03114449]
[1737622720837,0.63481874,3210.8,3210.3,3.91765]
[1737622721025,0.63481874,3210.8,3210.3,3.11489]
[1737622721238,0.63481874,3210.8,3210.4,3.11485]
[1737622721606,0.63481874,3210.8,3210.5,3.11477]
[1737622723220,0.63481874,3210.8,3210.4,3.11479]
[1737622724024,0.63481874,3210.8,3210.5,3.11475]
[1737622725340,0.63481874,3210.8,3210.3,3.1149]
[1737622725536,1.08470061,3210.8,3210.3,3.1149]
[1737622725738,3.11478,3210.5,3210.0,3.1152]
[1737622726317,3.86434,3210.7,3210.0,0.03114863]
[1737622726532,3.86434,3210.7,3210.2,3.11505]
[1737622726733,3.86434,3210.7,3210.2,3.14619707]
[1737622727003,0.7497,3210.7,3210.2,3.14614707]
[1737622727238,0.7497,3210.7,3210.3,3.11493]
[1737622727810,0.7497,3210.7,3210.3,3.11491]
[1737622730047,4.62570087,3210.7,3209.9,3.11531]
[1737622730267,1.51104087,3210.7,3209.9,3.11531]
[1737622730467,3.86435,3210.7,3210.1,3.1151]
[1737622731563,3.11469,3210.6,3210.1,3.1151]
[1737622731760,0.7497,3210.7,3210.3,3.11493]
[1737622732419,0.63481874,3210.8,3210.5,3.11477]
[1737622734160,0.63481874,3210.8,3210.6,3.11463]
[1737622734859,0.7497,3211.2,3210.7,3.11451]
[1737622735061,3.8638,3211.2,3210.7,3.11451]
[1737622735634,0.63780795,3211.0,3210.7,3.11451]
[1737622735832,0.63780795,3211.0,3210.5,0.03114437]
[1737622736144,0.63780795,3211.0,3210.6,3.11466]
[1737622736466,0.63780795,3211.0,3210.7,3.14570238]
[1737622737333,0.63780795,3211.0,3210.8,3.11446]
[1737622738879,0.63780795,3211.0,3210.7,0.7784]
[1737622739050,0.63780795,3211.0,3210.7,3.89297]
[1737622740581,0.63780795,3211.0,3210.7,3.11457]
[1737622741406,0.63780795,3211.0,3210.6,3.11467]
[1737622741759,0.63780795,3211.0,3210.7,3.1145]
[1737622742091,0.63780795,3211.0,3210.8,3.11448]
[1737622742584,0.63780795,3211.0,3210.9,3.11439]
[1737622742788,0.63780795,3211.0,3210.8,3.11448]
[1737622744225,0.63780795,3211.0,3210.4,0.7784]
[1737622744500,0.63780795,3211.0,3209.9,0.7784]
[1737622744501,3.1148,3210.5,3209.9,0.7784]
[1737622744711,0.7497,3210.4,3209.8,3.11545]
[1737622744861,0.7497,3210.4,3209.6,0.7784]
[1737622745184,0.7497,3210.4,3208.5,3.11668]
[1737622745185,3.11526,3210.0,3209.4,3.11576]
[1737622745390,3.11526,3210.0,3209.5,3.11571]
[1737622745988,3.11514,3210.2,3209.5,3.11571]
[1737622746184,3.11521,3210.1,3209.5,3.11571]
[1737622746887,0.697984,3210.2,3209.6,3.11557]
[1737622747090,3.813064,3210.2,3209.6,3.11557]
[1737622747292,0.63215937,3209.8,3209.6,3.11557]
[1737622747592,0.63215937,3209.8,3209.5,3.11571]
[1737622748490,0.63215937,3209.8,3209.5,3.1157]
[1737622750297,0.63215937,3209.8,3209.4,6.23154]
[1737622750473,0.63215937,3209.8,3209.4,3.11576]
[1737622750673,0.63215937,3209.8,3209.5,3.11572]
[1737622751691,1.38185937,3209.8,3209.2,3.11604]
[1737622751856,1.38185937,3209.8,3209.0,0.7708]
[1737622752062,0.63215937,3209.8,3209.3,3.11592]
[1737622752263,0.63215937,3209.8,3209.5,3.11574]
[1737622752460,0.63215937,3209.8,3209.7,3.11555]
[1737622754082,6.86466,3210.4,3209.8,3.11544]
[1737622754288,3.11504,3210.3,3209.7,3.11555]
[1737622754689,3.11507,3210.2,3209.7,3.11555]
[1737622754888,3.501547,3210.2,3209.7,3.11555]
[1737622755585,0.62965039,3210.0,3209.7,3.11555]
[1737622761478,0.62965039,3210.0,3209.5,3.88653]
[1737622761680,0.62965039,3210.0,3209.5,7.00219]
[1737622762616,0.62965039,3210.0,3209.5,3.88646]
[1737622762916,0.62965039,3210.0,3209.6,3.14677238]
[1737622763719,0.62965039,3210.0,3209.6,3.11562]
[1737622766020,0.62965039,3210.0,3209.5,3.88646]
[1737622766724,0.7497,3209.9,3209.5,3.11566]
[1737622767306,0.7497,3209.9,3209.0,0.8171]
[1737622767506,0.7497,3209.5,3208.7,3.93361]
[1737622767705,3.86552,3209.5,3208.8,3.11635]
[1737622767906,3.11586,3209.4,3208.8,3.11635]
[1737622769220,0.7497,3209.5,3209.0,3.11622]
[1737622770189,0.7497,3209.5,3209.0,3.14737853]
[1737622770391,0.7497,3209.5,3209.0,0.03115853]
[1737622770693,0.7497,3209.8,3208.9,0.8171]
[1737622770886,0.7497,3209.8,3209.5,3.11569]
[1737622771086,1.12467,3209.8,3209.5,3.11569]
[1737622771523,0.7497,3209.8,3209.5,3.11569]
[1737622771826,0.62705086,3209.7,3209.4,3.11583]
[1737622772405,0.62705086,3209.7,3209.6,3.11565]
[1737622772601,0.62705086,3209.7,3209.5,0.8171]
[1737622772801,0.62705086,3209.7,3209.4,3.11583]
[1737622773002,0.7497,3209.6,3209.4,3.11583]
[1737622773908,0.7497,3209.6,3209.3,3.11593]
[1737622774332,0.7497,3209.6,3209.2,3.11598]
[1737622776734,0.7497,3209.6,3209.2,6.23196]
[1737622777233,0.7497,3209.6,3209.2,3.11598]
[1737622778239,0.62705086,3209.7,3209.3,0.7952]
[1737622778418,0.62705086,3209.7,3209.3,3.11587]
[1737622779506,0.62705086,3209.7,3209.4,3.11579]
[1737622779918,0.62705086,3209.7,3209.3,0.03115717]
[1737622780114,0.62705086,3209.7,3209.5,3.11574]
[1737622780638,0.62705086,3209.7,3209.3,3.11588]
[1737622781146,0.62705086,3209.7,3209.4,3.11582]
[1737622787742,0.62705086,3209.7,3209.2,3.11599]
[1737622787743,1.00129295,3209.7,3209.2,3.11599]
[1737622787943,0.7497,3209.6,3209.1,3.11613]
[1737622788642,0.7497,3209.6,3209.0,3.11618]
[1737622788855,3.86543,3209.6,3209.0,3.11618]
[1737622789044,3.86543,3209.6,3209.0,3.11617]
[1737622789351,0.7982333,3209.5,3209.0,3.11617]
[1737622789937,0.7982333,3209.5,3208.8,3.91158]
[1737622790179,3.11585,3209.4,3208.9,3.11626]
[1737622793383,3.11585,3209.4,3208.7,3.11651]
[1737622793687,0.7497,3209.3,3208.7,3.11647]
[1737622793984,0.7497,3209.3,3208.9,3.11627]
[1737622794483,0.63284943,3209.2,3208.9,3.11627]
[1737622794977,0.63284943,3209.2,3208.4,0.7952]
[1737622795160,0.63284943,3209.2,3209.0,3.11622]
[1737622795563,0.63284943,3209.2,3208.7,3.11643]
[1737622795770,0.63284943,3209.2,3208.8,3.11634]
[1737622796164,0.63284943,3209.2,3208.7,3.11643]
[1737622797164,0.63284943,3209.2,3208.9,3.11633]
[1737622797758,0.63284943,3209.2,3208.9,3.11626]
[1737622797964,0.63284943,3209.2,3209.1,3.11613]
[1737622800385,0.7497,3209.7,3208.9,0.7952]
[1737622800574,0.7497,3209.7,3209.5,3.11569]
[1737622800766,0.7497,3210.0,3209.5,3.11569]
[1737622801091,3.7497,3210.0,3209.5,3.11569]
[1737622801455,6.86499,3210.0,3209.5,3.11569]
[1737622801779,3.7497,3210.0,3209.5,3.11569]
[1737622802084,3.7497,3210.0,3209.3,3.11593]
[1737622802085,0.63828991,3209.6,3209.3,3.11593]
[1737622802286,0.7497,3209.5,3209.1,3.11612]
[1737622803193,0.7497,3209.5,3209.0,3.11622]
[1737622803391,0.7497,3209.5,3208.7,3.11649]
[1737622803599,0.7497,3209.4,3208.3,3.11682]
[1737622803767,0.7497,3208.9,3208.4,3.11681]
[1737622803967,3.11644,3208.8,3208.2,3.11692]
[1737622804171,3.11664,3208.6,3208.0,3.91277]
[1737622804477,3.11664,3208.6,3208.0,3.11717]
[1737622804667,3.814852,3208.7,3208.1,3.1171]
[1737622804869,0.7497,3208.9,3208.3,3.11686]
[1737622805195,0.7497,3208.9,3208.4,0.7956]
[1737622805583,0.7497,3208.9,3208.5,3.11671]
[1737622805968,0.63145887,3208.6,3208.5,3.11671]
[1737622806786,3.7497,3209.2,3208.5,3.11671]
[1737622807067,1.12467,3209.2,3208.7,3.11644]
[1737622807495,1.12467,3209.2,3208.9,3.11633]
[1737622807683,1.12467,3209.2,3208.7,3.11644]
[1737622807684,0.62348071,3209.0,3208.7,3.11644]
[1737622811796,0.62348071,3209.0,3208.9,3.11633]
[1737622812211,0.7497,3209.7,3209.2,3.11601]
[1737622812391,1.447758,3209.7,3209.2,3.11599]
[1737622812767,1.447758,3209.7,3209.3,3.11589]
[1737622812970,0.7497,3209.7,3209.2,3.11599]
[1737622813221,0.7497,3209.7,3209.3,3.11592]
[1737622813388,0.7497,3209.7,3209.2,3.11596]
[1737622813719,0.6372555,3209.5,3209.2,3.11596]
[1737622813865,0.6372555,3209.5,3208.9,0.8066]
[1737622814071,0.7497,3209.4,3208.8,3.11639]
[1737622814301,3.86561,3209.4,3208.8,3.11639]
[1737622814601,3.86561,3209.4,3208.8,6.23274]
[1737622814830,0.7497,3209.4,3208.9,3.11626]
[1737622815272,0.6372555,3209.5,3209.2,3.11594]
[1737622815672,0.7497,3209.9,3209.2,3.11596]
[1737622815978,3.0,3209.8,3209.3,3.11591]
[1737622816369,0.63687198,3209.6,3209.3,3.11591]
[1737622816679,0.7497,3210.3,3209.8,3.11538]
[1737622816879,0.7497,3210.5,3210.2,3.11507]
[1737622817090,3.1145,3210.8,3210.2,3.11507]
[1737622817292,0.7497,3211.0,3210.3,3.14611949]
[1737622817603,3.11472,3210.6,3210.1,0.8066]
[1737622817769,0.8338444,3211.5,3208.7,2.95034504]
[1737622817770,0.7497,3210.4,3208.7,2.95034504]
[1737622817972,0.7497,3210.4,3209.5,3.11571]
[1737622818169,0.7497,3210.4,3209.7,3.11554]
[1737622818410,0.7497,3210.4,3209.8,3.11545]
[1737622818588,0.7497,3210.4,3209.8,3.92205]
[1737622820073,0.7497,3210.4,3210.0,3.11517]
[1737622820277,0.7497,3210.4,3210.1,3.11516]
[1737622821129,0.7497,3210.4,3209.9,3.11536]
[1737622821443,0.7497,3210.4,3209.4,3.11576]
[1737622821574,0.7497,3209.9,3208.8,3.11642]
[1737622821783,3.0,3210.6,3207.6,9.27638112]
[1737622821784,3.1161,3209.2,3208.6,0.8066]
[1737622821977,3.1161,3209.2,3208.5,3.11671]
[1737622822531,3.11596,3209.3,3208.6,3.11658]
[1737622822805,0.63731537,3209.2,3208.5,3.11671]
[1737622822992,0.63731537,3209.2,3208.7,3.11652]
[1737622823703,3.86555,3209.4,3208.7,3.11652]
[1737622823877,0.61612761,3209.3,3208.7,3.11652]
[1737622824079,0.61612761,3209.3,3209.0,3.11619]
[1737622825312,0.61612761,3209.3,3208.7,3.1165]
[1737622825490,0.61612761,3209.3,3208.8,3.11637]
[1737622826386,0.61612761,3209.3,3208.7,3.1165]
[1737622826587,0.61612761,3209.3,3208.9,3.11632]
[1737622826974,0.61612761,3209.3,3208.7,3.1165]
[1737622827180,1.06428537,3209.3,3208.7,3.1165]
[1737622827497,3.11606,3209.2,3208.5,3.93427]
[1737622827816,0.7497,3209.1,3208.5,3.11667]
[1737622828477,3.8659,3209.1,3208.5,3.11667]
[1737622830489,0.7497,3209.1,3208.6,3.11655]
[1737622830694,0.7497,3209.1,3208.7,3.11651]
[1737622831619,0.7497,3209.1,3208.5,3.11667]
[1737622831818,1.55430654,3209.1,3208.6,3.11659]
[1737622832389,1.55430654,3209.1,3208.7,3.11649]
[1737622832705,0.7497,3209.1,3208.6,3.11659]
[1737622832910,0.7497,3209.1,3208.6,3.11655]
[1737622833099,0.7497,3209.1,3208.7,3.11649]
[1737622833500,0.7497,3209.1,3208.6,3.11655]
[1737622833749,0.7497,3209.1,3208.8,3.11642]
[1737622834095,4.92995537,3209.3,3208.8,3.11642]
[1737622834317,3.344,3209.9,3208.8,3.11642]
[1737622834318,0.7497,3209.7,3209.1,3.11613]
[1737622834624,0.386524,3209.6,3209.1,3.11613]
[1737622835124,0.386524,3209.6,3208.8,0.03116392]
[1737622835125,0.7497,3210.2,3209.6,3.11556]
[1737622835327,0.7497,3210.2,3209.7,3.11549]
[1737622835924,0.6139823,3209.9,3209.7,3.11549]
[1737622837890,3.7497,3210.2,3209.8,3.11545]
[1737622838097,0.7497,3210.2,3209.8,3.11545]
[1737622840714,0.6268879,3210.0,3209.7,3.11549]
[1737622841520,0.6268879,3210.0,3209.5,3.11573]
[1737622842127,0.6268879,3210.0,3209.6,3.11563]
[1737622842835,0.6268879,3210.0,3209.5,3.11573]
[1737622843034,0.6268879,3210.0,3209.8,3.11543]
[1737622844025,0.6268879,3210.0,3209.7,3.11555]
[1737622845129,0.6268879,3210.0,3209.8,3.11544]
[1737622845520,0.7497,3210.5,3209.8,3.87504]
[1737622845833,0.7497,3210.5,3210.0,3.11523]
[1737622845834,0.62408455,3210.1,3210.0,3.11523]
[1737622846541,3.0,3210.7,3210.0,3.11523]
[1737622846728,3.7497,3210.8,3210.2,3.11501]
[1737622846934,3.7497,3210.8,3210.0,3.11523]
[1737622846935,0.62838514,3210.3,3210.0,3.11523]
[1737622847242,0.62838514,3210.3,3209.8,3.87502]
[1737622847440,1.75241065,3210.3,3209.6,3.1156]
[1737622847642,3.11525,3210.1,3209.5,3.11572]
[1737622848273,6.23049,3210.1,3209.4,3.11581]
[1737622848569,3.11524,3210.1,3209.5,3.11571]
[1737622848719,4.86743065,3210.3,3209.4,3.11577]
[1737622849067,0.48674307,3210.2,3209.6,3.11563]
[1737622849216,3.60189307,3210.2,3209.6,3.11563]
[1737622849719,6.71704307,3210.2,3209.6,3.11563]
[1737622849938,3.60189307,3210.2,3209.6,3.11563]
[1737622850456,3.11524,3210.1,3209.4,6.23156]
[1737622850656,3.11337087,3210.1,3209.5,3.11572]
[1737622850864,0.63106522,3209.7,3209.5,3.11572]
[1737622851066,0.63106522,3209.7,3209.2,0.7596]
[1737622851231,0.63106522,3209.7,3208.5,3.0]
[1737622851232,0.63106522,3209.7,3209.1,3.11612]
[1737622851432,3.74664522,3209.7,3209.0,3.11619]
[1737622851643,3.74664522,3209.7,3209.0,6.23236]
[1737622852167,3.74664522,3209.7,3209.1,3.11606]
[1737622852365,0.63106522,3209.7,3208.9,0.7596]
[1737622852551,0.63106522,3209.7,3209.3,3.11592]
[1737622853275,0.63106522,3209.7,3209.5,3.11572]
[1737622854333,0.63106522,3209.7,3209.3,3.11592]
[1737622854528,0.63106522,3209.7,3209.5,3.11568]
[1737622854730,0.63106522,3209.7,3209.6,3.11565]
[1737622855168,0.7497,3210.1,3209.7,3.11547]
[1737622855471,3.0,3210.4,3209.8,3.11543]
[1737622855472,0.61633887,3210.0,3209.8,3.11543]
[1737622856873,0.7497,3210.2,3209.8,3.11543]
[1737622858068,0.62837016,3210.1,3209.9,3.11536]
[1737622858368,0.62837016,3210.1,3209.8,3.11543]
[1737622858838,0.62837016,3210.1,3209.9,3.11531]
[1737622859040,0.62837016,3210.1,3209.8,3.11543]
[1737622859546,6.8646,3210.4,3209.8,3.60905739]
[1737622859753,0.7497,3210.4,3209.6,3.8752]
[1737622859962,0.7497,3210.4,3209.6,3.87516]
[1737622859963,0.63391827,3210.2,3209.6,3.87516]
[1737622860337,0.63391827,3210.2,3209.6,0.7596]
[1737622860533,3.1153,3210.0,3209.3,0.7596]
[1737622860738,3.11553,3209.8,3209.2,3.116]
[1737622860950,0.7497,3209.9,3209.5,3.11574]
[1737622861280,3.86506,3209.9,3209.3,3.11586]
[1737622861835,0.61985595,3209.7,3209.2,3.11604]
[1737622862046,0.61985595,3209.7,3209.4,3.11578]
[1737622862331,0.61985595,3209.7,3209.5,3.11566]
[1737622862533,0.61985595,3209.7,3209.3,3.11586]
[1737622862979,0.61985595,3209.7,3209.4,3.11584]
[1737622863541,0.61985595,3209.7,3209.4,6.23161]
[1737622864376,0.61985595,3209.7,3209.4,3.11577]
[1737622865481,0.61985595,3209.7,3209.5,3.11573]
[1737622866058,0.61985595,3209.7,3209.6,3.11565]
[1737622866365,0.61985595,3209.7,3209.6,3.88445]
[1737622867086,0.7497,3210.8,3209.8,0.7687]
[1737622867245,0.7497,3210.8,3210.2,3.11501]
[1737622867683,0.7497,3210.8,3210.3,3.11491]
[1737622867982,0.60813821,3210.4,3210.3,3.11491]
[1737622869253,0.60813821,3210.4,3210.2,3.11503]
[1737622869949,0.60813821,3210.4,3210.3,3.11497]
[1737622870285,0.60813821,3210.4,3210.3,3.96371813]
[1737622870447,0.7497,3211.2,3210.8,3.11445]
[1737622870780,3.86389,3211.2,3210.6,3.1146]
[1737622870985,0.61657344,3210.9,3210.4,6.22967]
[1737622871355,3.73100344,3210.9,3210.2,3.11497]
[1737622871559,3.11458,3210.7,3209.9,3.11535]
[1737622871769,3.86476,3210.3,3209.7,3.11549]
[1737622872346,3.11508,3210.2,3209.7,3.11549]
[1737622872772,0.7497,3210.3,3209.8,3.11541]
[1737622873044,0.7497,3210.3,3209.9,3.11534]
[1737622873271,0.7497,3210.5,3209.9,3.11534]
[1737622873449,0.7497,3210.5,3210.1,3.11514]
[1737622873643,0.7497,3210.5,3209.9,3.90484]
[1737622874057,0.61445463,3210.2,3209.9,3.90484]
[1737622874264,0.61445463,3210.2,3210.1,3.11516]
[1737622874983,0.61445463,3210.2,3209.9,3.90484]
[1737622875168,0.61445463,3210.2,3210.0,3.11526]
[1737622877782,0.61445463,3210.2,3210.1,3.11516]
[1737622879687,0.61445463,3210.2,3209.9,3.11529]
[1737622879886,3.11536,3209.9,3209.3,3.11588]
[1737622880091,3.11549,3209.8,3209.3,3.11588]
[1737622880264,3.11526,3210.0,3209.4,3.11583]
[1737622880464,3.1152,3210.1,3209.5,3.11574]
[1737622880669,3.1152,3210.1,3209.3,3.11588]
[1737622880670,3.11531,3210.0,3209.3,6.23174]
[1737622881052,3.11531,3210.0,3209.4,3.11579]
[1737622881256,3.11531,3210.0,3209.5,3.11572]
[1737622881456,3.11531,3210.0,3209.3,6.23172]
[1737622881656,3.11531,3210.0,3209.4,3.11581]
[1737622883471,3.11531,3210.0,3209.0,0.7857]
[1737622883658,3.11557,3209.7,3209.1,3.11609]
[1737622883857,3.11554,3209.8,3209.1,3.11609]
[1737622884085,3.11554,3209.8,3209.1,3.11608]
[1737622884287,3.11554,3209.8,3209.1,6.23214]
[1737622884597,3.11554,3209.8,3209.1,3.11606]
[1737622884890,0.615212,3209.7,3209.2,3.11598]
[1737622885690,0.615212,3209.7,3209.1,3.11606]
[1737622885864,3.11565,3209.6,3209.1,3.11606]
[1737622886394,0.7497,3209.4,3207.9,3.11724]
[1737622886563,0.7497,3209.4,3207.5,3.12267]
[1737622886564,0.7497,3209.4,3208.2,3.11701]
[1737622886765,0.7497,3209.4,3208.7,3.11646]
[1737622886964,3.11594,3209.3,3208.7,3.11646]
[1737622887190,3.814082,3209.3,3208.7,3.11646]
[1737622887708,0.62481105,3209.1,3208.7,3.11646]
[1737622888459,0.62481105,3209.1,3208.8,3.11635]
[1737622890378,0.62481105,3209.1,3208.9,3.11629]
[1737622890712,0.7497,3209.4,3209.1,3.11606]
[1737622891078,3.11559,3209.7,3209.1,3.11606]
[1737622891297,0.7497,3209.7,3209.1,3.11606]
[1737622891812,0.6214448,3209.5,3209.1,3.11606]
[1737622892665,0.6214448,3209.5,3209.2,3.11599]
[1737622892861,0.7497,3210.0,3209.4,3.11581]
[1737622893215,3.86473,3210.3,3209.7,3.11552]
[1737622893417,0.61689414,3210.0,3209.7,3.11552]
[1737622894065,0.7497,3210.3,3209.9,3.11533]
[1737622895814,0.7497,3210.3,3209.7,3.11552]
[1737622896104,0.6206817,3210.2,3209.5,0.03115085]
[1737622896312,0.6206817,3210.2,3210.0,3.11517]
[1737622896669,0.6206817,3210.2,3210.1,3.11516]
[1737622897900,0.6206817,3210.2,3210.0,3.11517]
[1737622898110,0.6206817,3210.2,3209.8,3.11543]
[1737622899893,0.7497,3210.6,3209.9,3.14649078]
[1737622900087,0.7497,3210.6,3210.1,6.23018]